fUSD/lending_fUSD_20240117
["ID","MTS","AMOUNT","RATE_DAILY","PERIOD"]
[311903187,1705490010767,-1194.88,0.00024383,2]
[311903188,1705490010776,-2402.35,0.00024383,2]
[311903189,1705490010785,-737.47,0.00024383,2]
[311903190,1705490010794,-692.46,0.00024657,2]
[311903191,1705490010803,-612.12,0.00024657,2]
[311903192,1705490010812,-1194.88,0.00024657,2]
[311903193,1705490010821,-2402.35,0.00024657,2]
[311903194,1705490010830,-737.47,0.00024657,2]
[311903195,1705490010839,-500.0,0.00024931,2]
[311903196,1705490010848,-692.46,0.00024931,2]
[311903197,1705490010857,-612.12,0.00024931,2]
[311903198,1705490010880,-1194.88,0.00024931,2]
[311903199,1705490010897,-2402.35,0.00024931,2]
[311903200,1705490010918,-737.47,0.00024931,2]
[311903201,1705490010937,-500.0,0.00025205,2]
[311903202,1705490010953,-692.46,0.00025205,2]
[311903203,1705490010971,-612.12,0.00025205,2]
[311903204,1705490010988,-1194.88,0.00025205,2]
[311903205,1705490011007,-2402.35,0.00025205,2]
[311903206,1705490011026,-737.47,0.00025205,2]
[311903207,1705490011044,-500.0,0.00025479,2]
[311903208,1705490011067,-692.46,0.00025479,2]
[311903209,1705490011080,-612.12,0.00025479,2]
[311903210,1705490011097,-581.94710585,0.00025479,2]
[311903211,1705490011119,-612.93289415,0.00025479,2]
[311903212,1705490011137,-2402.35,0.00025479,2]
[311903213,1705490011153,-737.47,0.00025479,2]
[311903214,1705490011169,-500.0,0.00025753,2]
[311903215,1705490011186,-692.46,0.00025753,2]
[311903216,1705490011203,-612.12,0.00025753,2]
[311903217,1705490011219,-1194.88,0.00025753,2]
[311903218,1705490011236,-2402.35,0.00025753,2]
[311903219,1705490011251,-500.0,0.00026027,2]
[311903220,1705490011269,-692.46,0.00026027,2]
[311903221,1705490011285,-612.12,0.00026027,2]
[311903222,1705490011302,-1194.88,0.00026027,2]
[311903223,1705490011317,-571.22,0.00026301,2]
[311903224,1705490011333,-1014.39,0.00026301,2]
[311903225,1705490011349,-500.0,0.00026301,2]
[311903226,1705490011366,-692.46,0.00026301,2]
[311903227,1705490011382,-612.12,0.00026301,2]
[311903228,1705490011400,-1194.88,0.00026301,2]
[311903229,1705490011415,-571.22,0.00026575,2]
[311903230,1705490011426,-1014.39,0.00026575,2]
[311903231,1705490011435,-500.0,0.00026575,2]
[311903232,1705490011445,-692.46,0.00026575,2]
[311903233,1705490011454,-612.12,0.00026575,2]
[311903234,1705490011466,-571.22,0.00026849,2]
[311903235,1705490011477,-1014.39,0.00026849,2]
[311903236,1705490011486,-500.0,0.00026849,2]
[311903237,1705490011495,-692.46,0.00026849,2]
[311903238,1705490011505,-612.12,0.00026849,2]
[311903239,1705490011515,-1014.39,0.00027123,2]
[311903240,1705490011524,-571.22,0.00027123,2]
[311903241,1705490011533,-500.0,0.00027123,2]
[311903242,1705490011542,-612.12,0.00027123,2]
[311903243,1705490011553,-2488.53,0.00027397,2]
[311903244,1705490011562,-1014.39,0.00027397,2]
[311903245,1705490011572,-571.22,0.00027397,2]
[311903246,1705490011581,-622.86882145,0.00027397,2]
[311903247,1705490011591,-7666.34,0.00027397,10]
[311903248,1705490011600,-1866.72,0.00027671,2]
[311903249,1705490011609,-2431.43933143,0.00027671,2]
[311903250,1705490011621,-57.09066857,0.00027671,2]
[311903251,1705490011631,-584.81840942,0.00027671,2]
[311903252,1705490011642,-429.57159058,0.00027671,2]
[311903253,1705490011650,-571.22,0.00027671,2]
[311903254,1705490011660,-1866.72,0.00027945,2]
[311903255,1705490011669,-2488.53,0.00027945,2]
[311903256,1705490011678,-1014.39,0.00027945,2]
[311903257,1705490011687,-571.22,0.00027945,2]
[311903258,1705490011696,-1866.80446656,0.00028219,2]
[311903259,1705490011705,-2488.62477927,0.00028219,2]
[311903260,1705490011714,-1014.43542177,0.00028219,2]
[311903261,1705490011723,-571.3468829,0.00028219,2]
[311903262,1705490011732,-5846.28536618,0.00032,3]
[311903263,1705490011743,-57904.86271784,0.00032,3]
[311903264,1705490011771,-3793.96423697,0.00032,3]
[311903265,1705490011782,-584.99795,0.00032,3]
[311903266,1705490011793,-2202.33860233,0.00032,3]
[311903267,1705490011804,-2248.46080941,0.00032,3]
[311903268,1705490011815,-3191.45056,0.00032,3]
[311903269,1705490011826,-7632.5043998,0.00032,3]
[311903270,1705490011837,-547.62,0.00032,3]
[311903271,1705490011896,-618.00821424,0.00027123,2]
[311903272,1705490011914,-534.8719907,0.00025753,2]
[311903273,1705490011933,-202.5980093,0.00025753,2]
[311903274,1705490011942,-1194.88,0.00026575,2]
[311903275,1705490011952,-74.45178576,0.00027123,2]
[311903276,1705490011961,-612.12,0.00027397,2]
[311903277,1705490011970,-464.46486833,0.00032,3]
[311903278,1705490011982,-12312.21133073,0.00032,3]
[311903280,1705490020957,344.78041424,0.00023012,10]
[311903281,1705490020983,344.78041424,0.00023286,10]
[311903282,1705490021008,344.78041424,0.00023286,10]
[311903283,1705490021041,344.78041424,0.00023286,10]
[311903284,1705490021071,344.78041423,0.00023286,10]
[311903285,1705490074107,205.0,0.00026238,10]
[311903286,1705490093062,151.40117,0.00027,7]
[311903287,1705490094522,151.40117,0.00027,7]
[311903288,1705490094608,151.40117,0.00027,7]
[311903289,1705490094931,151.40117,0.00027,7]
[311903290,1705490095459,151.40117,0.00027,7]
[311903291,1705490096001,151.40117,0.00027,7]
[311903292,1705490096573,151.40117,0.00027,7]
[311903293,1705490097154,151.40117,0.00027,7]
[311903294,1705490097449,151.40117,0.00027,7]
[311903295,1705490097978,151.40117,0.00027,7]
[311903296,1705490098309,151.40117,0.00027,7]
[311903297,1705490098909,151.40117,0.00027,7]
[311903298,1705490099453,151.40117,0.00027,7]
[311903299,1705490100016,151.40117,0.00027,7]
[311903300,1705490110563,151.40117,0.00027,7]
[311903301,1705490110948,151.40117,0.00027,7]
[311903302,1705490111235,151.40117,0.00027,7]
[311903303,1705490111541,151.40117,0.00027,7]
[311903304,1705490111849,151.40117,0.00027,7]
[311903305,1705490112187,151.40117,0.00027,7]
[311903306,1705490112562,151.40117,0.00027,7]
[311903307,1705490112921,151.40117,0.00027,7]
[311903308,1705490113279,151.40117,0.00027,7]
[311903309,1705490121072,151.40117,0.00027,7]
[311903310,1705490131750,162.70962901,0.00027,7]
[311903311,1705490165125,314.34650534,0.000244,120]
[311903313,1705490434555,205.0,0.00026342,11]
[311903315,1705490687264,10000.0,0.00025,30]
[311903317,1705490794012,205.0,0.00025509,11]
[311903318,1705490947157,-327.09307491,0.00018561,2]
[311903319,1705490947179,-668.20876961,0.00018563,2]
[311903320,1705490947200,-279.54,0.00018565,2]
[311903321,1705490947221,-205.0,0.00018611,2]
[311903322,1705490947242,-520.15815548,0.00019737,2]
[311903323,1705490948202,-2000.0,0.00019737,2]
[311903324,1705490948412,523.73846155,0.0001856,2]
[311903325,1705490948665,-2000.0,0.00019737,2]
[311903326,1705490949058,-114.60698666,0.00019737,2]
[311903327,1705490949078,-1885.39301334,0.00019737,2]
[311903328,1705490949540,-1144.7752978,0.00019737,2]
[311903329,1705490949560,-404.1868368,0.00019738,2]
[311903330,1705490949581,-451.0378654,0.00019738,2]
[311903331,1705490949966,-2000.0,0.00019738,2]
[311903332,1705490950422,-2000.0,0.00019738,2]
[311903333,1705490950841,-2000.0,0.00019738,2]
[311903334,1705490951237,-2000.0,0.00019738,2]
[311903335,1705490951667,-2000.0,0.00019738,2]
[311903336,1705490952113,-2000.0,0.00019738,2]
[311903337,1705490952534,-2000.0,0.00019738,2]
[311903338,1705490952968,-2000.0,0.00019738,2]
[311903339,1705490953382,-321.72789246,0.00019738,2]
[311903340,1705490953403,-1678.27210754,0.00019739,2]
[311903341,1705490953821,-2000.0,0.00019739,2]
[311903342,1705490954246,-2000.0,0.00019739,2]
[311903343,1705490954655,-2000.0,0.00019739,2]
[311903344,1705490955130,-2000.0,0.00019739,2]
[311903345,1705490955505,-2000.0,0.00019739,2]
[311903346,1705490955921,-2000.0,0.00019739,2]
[311903347,1705490956382,-2000.0,0.00019739,2]
[311903348,1705490956828,-2000.0,0.00019739,2]
[311903349,1705490957186,-2000.0,0.00019739,2]
[311903350,1705490957583,-2000.0,0.00019739,2]
[311903351,1705490958168,-928.13539079,0.00019739,2]
[311903352,1705490958190,-1071.86460921,0.00019739,2]
[311903353,1705490958465,-2000.0,0.00019739,2]
[311903354,1705490958915,-2000.0,0.00019739,2]
[311903355,1705490959293,-27.67276696,0.00019739,2]
[311903356,1705490959315,-1972.32723304,0.0001974,2]
[311903357,1705490959725,-2000.0,0.0001974,2]
[311903358,1705490960205,-378.020068,0.0001974,2]
[311903359,1705490960225,-228.3171966,0.0001974,2]
[311903360,1705490960246,-523.43271801,0.00019741,2]
[311903361,1705490960268,-162.31787417,0.00019741,2]
[311903362,1705490960290,-707.91214322,0.00019741,2]
[311903363,1705490960636,-353.00697328,0.00019741,2]
[311903364,1705490960672,-331.31849362,0.00019741,2]
[311903365,1705490960697,-1029.75541454,0.00019742,2]
[311903366,1705490960720,-285.91911856,0.00019743,2]
[311903367,1705490964295,-2000.0,0.00019743,2]
[311903368,1705490965487,-2000.0,0.00019743,2]
[311903369,1705490966038,-2000.0,0.00019743,2]
[311903370,1705490966545,-311.59150887,0.00019742,2]
[311903371,1705490966568,-1688.40849113,0.00019743,2]
[311903372,1705490966836,-2000.0,0.00019743,2]
[311903373,1705490967464,-2000.0,0.00019743,2]
[311903374,1705490968026,-2000.0,0.00019743,2]
[311903375,1705490968565,-2000.0,0.00019743,2]
[311903376,1705490968991,-2000.0,0.00019743,2]
[311903377,1705490970307,-2000.0,0.00019743,2]
[311903378,1705490970728,-2000.0,0.00019743,2]
[311903379,1705490971135,-2000.0,0.00019743,2]
[311903380,1705490971573,-2000.0,0.00019743,2]
[311903381,1705490971925,-2000.0,0.00019743,2]
[311903382,1705490972323,-2000.0,0.00019743,2]
[311903383,1705490972736,-2000.0,0.00019743,2]
[311903384,1705490973154,-2000.0,0.00019743,2]
[311903385,1705490973542,-2000.0,0.00019743,2]
[311903386,1705490973894,-2000.0,0.00019743,2]
[311903387,1705490974524,45.19063634,0.00019545,2]
[311903388,1705490974869,-2000.0,0.00019545,2]
[311903389,1705490975286,-840.31688547,0.00019545,2]
[311903390,1705490975308,-1159.68311453,0.00019743,2]
[311903391,1705490975696,-2000.0,0.00019743,2]
[311903392,1705490976166,-2000.0,0.00019743,2]
[311903393,1705490976496,-2000.0,0.00019743,2]
[311903394,1705490977497,-2000.0,0.00019743,2]
[311903395,1705490977910,-2000.0,0.00019743,2]
[311903396,1705490978354,-2000.0,0.00019743,2]
[311903397,1705490978881,-2000.0,0.00019743,2]
[311903398,1705490979171,-2000.0,0.00019743,2]
[311903399,1705490980943,-2000.0,0.00019743,2]
[311903400,1705490981315,-2000.0,0.00019743,2]
[311903401,1705490981721,-2000.0,0.00019743,2]
[311903402,1705490982092,-2000.0,0.00019743,2]
[311903403,1705490982425,-2000.0,0.00019743,2]
[311903404,1705490983561,-2000.0,0.00019743,2]
[311903405,1705490983822,-2000.0,0.00019743,2]
[311903406,1705490984342,-2000.0,0.00019743,2]
[311903407,1705490984707,-2000.0,0.00019743,2]
[311903408,1705490985266,-2000.0,0.00019743,2]
[311903409,1705490986195,-2000.0,0.00019743,2]
[311903410,1705490986771,-2000.0,0.00019743,2]
[311903411,1705490987753,-2000.0,0.00019743,2]
[311903412,1705490988060,-2000.0,0.00019743,2]
[311903413,1705490988707,-2000.0,0.00019743,2]
[311903414,1705490990016,-2000.0,0.00019743,2]
[311903415,1705490997239,-1975.6,0.00019743,2]
[311903416,1705491011241,360.82570241,0.00017452,2]
[311903417,1705491021262,155.0,0.00017769,2]
[311903418,1705491027624,52.47429759,0.00018754,2]
[311903419,1705491029233,150.0,0.00015793,2]
[311903420,1705491029254,150.0,0.00015793,2]
[311903421,1705491029274,8.43771331,0.00015793,2]
[311903428,1705491033053,-158.78435792,0.00018753,2]
[311903429,1705491033150,-56.73809652,0.00018753,2]
[311903430,1705491033159,-1847.74262692,0.00018754,2]
[311903434,1705491033499,-237.31927656,0.00018952,2]
[311903436,1705491033512,-384.63626263,0.00018952,2]
[311903438,1705491033521,-89.80072638,0.00019633,2]
[311903441,1705491033545,-94.20448154,0.00019633,2]
[311903443,1705491033554,-305.79551846,0.00019741,2]
[311903446,1705491033566,-4023.16713966,0.00019741,2]
[311903447,1705491033576,-2154.98711983,0.00019741,2]
[311903449,1705491033586,-4349.26887961,0.00019741,2]
[311903451,1705491033596,-228.26905656,0.00019741,2]
[311903453,1705491033605,-242.40849757,0.00019741,2]
[311903455,1705491033615,-3029.56990758,0.00019741,2]
[311903457,1705491033624,-4624.96257004,0.00019741,2]
[311903459,1705491033634,-155.00697621,0.00019741,2]
[311903461,1705491033643,-221.60004997,0.00019741,2]
[311903462,1705491033653,-11799.39517941,0.00019741,2]
[311903463,1705491033662,-1887.69522411,0.00019742,2]
[311903464,1705491033672,-264.96253646,0.00019742,2]
[311903465,1705491033681,-402.8524231,0.00019742,2]
[311903466,1705491033691,-648.71320708,0.00019743,2]
[311903467,1705491033704,-230.14933227,0.00019743,2]
[311903468,1705491033714,-269.89826797,0.00019743,2]
[311903469,1705491033723,-10729.245315,0.00019743,2]
[311903470,1705491033736,-12053.51011133,0.00019743,2]
[311903471,1705491033746,-6302.09901033,0.00019745,2]
[311903472,1705491033756,-450.0,0.00019748,2]
[311903473,1705491033765,-268.3291844,0.0002,2]
[311903474,1705491033775,-278.75543747,0.0002,2]
[311903475,1705491033785,-200.0,0.00020176,2]
[311903476,1705491033795,-155.0,0.00020216,2]
[311903477,1705491033804,-211.4392149,0.00020217,2]
[311903478,1705491033813,-326.39,0.00020217,2]
[311903479,1705491033823,-2439.7,0.00020217,2]
[311903480,1705491033833,-852.95,0.00020217,2]
[311903481,1705491033842,-863.22,0.00020217,2]
[311903482,1705491033851,-340.48,0.00020217,2]
[311903483,1705491033861,-4804.91,0.00020217,2]
[311903484,1705491033870,-250.0,0.00020273,2]
[311903485,1705491033879,-156.1,0.00020288,2]
[311903486,1705491033888,-1999.92,0.0002031,2]
[311903487,1705491033898,-159.68,0.00020325,2]
[311903488,1705491033907,-428.55,0.00020337,2]
[311903489,1705491033916,-5423.07,0.00020341,2]
[311903490,1705491033925,-150.0,0.00020429,2]
[311903491,1705491033935,-250.0,0.000205,2]
[311903492,1705491033944,-499.99,0.00020515,2]
[311903493,1705491033953,-560.62397723,0.00020548,3]
[311903494,1705491033962,-2000.0,0.00020548,2]
[311903495,1705491033972,-1000.0,0.00020565,2]
[311903496,1705491033981,-159.35,0.00020582,2]
[311903497,1705491033990,-1374.96,0.00020604,2]
[311903498,1705491033999,-159.35,0.00020671,2]
[311903499,1705491034010,-869.77077732,0.00020724,2]
[311903500,1705491034019,-159.35,0.00020761,2]
[311903501,1705491034029,-279.54,0.00020829,2]
[311903502,1705491034038,-174.75,0.00020848,2]
[311903503,1705491034047,-159.35,0.0002085,2]
[311903504,1705491034058,-159.35,0.00020939,2]
[311903505,1705491034067,-419.78554962,0.0002094,2]
[311903506,1705491034077,-3188.36893674,0.00020942,2]
[311903507,1705491034087,-159.35,0.00021029,2]
[311903508,1705491034096,-160.09,0.00021086,2]
[311903509,1705491034105,-175.8,0.00021086,2]
[311903510,1705491034114,-159.35,0.00021118,2]
[311903511,1705491034123,-159.35,0.00021208,2]
[311903512,1705491034133,-159.35,0.00021297,2]
[311903513,1705491034142,-159.35,0.00021386,2]
[311903514,1705491034151,-159.35,0.00021476,2]
[311903515,1705491034161,-286.21123975,0.00021523,2]
[311903516,1705491034170,-159.35,0.00021565,2]
[311903517,1705491034180,-159.68,0.0002157,2]
[311903518,1705491034189,-160.68,0.00021644,2]
[311903519,1705491034199,-159.35,0.00021654,2]
[311903520,1705491034208,-202.67,0.00021665,2]
[311903521,1705491034217,-160.09,0.00021788,2]
[311903522,1705491034227,-15994.69480019,0.000218,2]
[311903523,1705491034236,-245.68310072,0.00021804,2]
[311903524,1705491034245,-1852.62432017,0.00021813,2]
[311903525,1705491034254,-503.84036235,0.00021813,2]
[311903526,1705491034263,-324.2270795,0.00021814,2]
[311903527,1705491034273,-3675.87540521,0.00021814,4]
[311903528,1705491034282,-487.53390948,0.00021815,2]
[311903529,1705491034292,-155.41027789,0.00021815,2]
[311903530,1705491034301,-1033.25492937,0.00021815,2]
[311903531,1705491034310,-190.92305216,0.00021815,2]
[311903532,1705491034321,-659.34844869,0.00021815,2]
[311903533,1705491034331,-867.04082941,0.00021815,2]
[311903534,1705491034340,-259.69802213,0.00021815,2]
[311903535,1705491034349,-155.0,0.00021815,2]
[311903536,1705491034359,-650.80854945,0.00021815,2]
[311903537,1705491034369,-5100.27300769,0.00021815,2]
[311903538,1705491034378,-286.27768245,0.00021815,2]
[311903539,1705491034387,-215.1155669,0.00021815,2]
[311903540,1705491034397,-1043.66290087,0.00021815,2]
[311903541,1705491034406,-589.16302208,0.00021815,2]
[311903542,1705491034416,-417.44049505,0.00021815,2]
[311903543,1705491034425,-1060.76738393,0.00021815,2]
[311903544,1705491034435,-453.88939778,0.00021815,2]
[311903545,1705491034444,-395.11896269,0.00021815,2]
[311903546,1705491034454,-155.01909305,0.00021815,2]
[311903547,1705491034463,-3051.20468532,0.00021815,2]
[311903548,1705491034475,-357.86355932,0.00021815,2]
[311903549,1705491034485,-6972.1954,0.00021816,2]
[311903550,1705491034495,-671.9155288,0.00021816,2]
[311903551,1705491034505,-8778.89766443,0.00021817,2]
[311903552,1705491034534,-425.76,0.00021817,2]
[311903553,1705491034546,-539.5667444,0.00021817,2]
[311903554,1705491034557,-855.88986538,0.00021817,2]
[311903559,1705491037513,-2984.82053445,0.00021817,2]
[311903560,1705491037525,-2311.66197031,0.00021817,2]
[311903561,1705491037536,-476.35748233,0.00021817,2]
[311903562,1705491037571,-428.69827,0.00021817,2]
[311903563,1705491037687,-1943.92007984,0.00021817,2]
[311903564,1705491037699,-36809.42738886,0.00021817,2]
[311903565,1705491037708,-172.52,0.00021899,2]
[311903566,1705491037719,-505627.29609809,0.000219,2]
[311903567,1705491037729,-160.58264314,0.00021915,2]
[311903568,1705491037738,-155.97638622,0.00021916,2]
[311903569,1705491037747,-500.0,0.00021917,2]
[311903570,1705491037757,-500.0,0.00021917,2]
[311903571,1705491037765,-500.0,0.00021917,2]
[311903572,1705491037774,-500.0,0.00021917,2]
[311903573,1705491037785,-925.18,0.00021917,2]
[311903574,1705491037794,-525.35785494,0.00021917,2]
[311903575,1705491037803,-421.33331293,0.00021917,2]
[311903577,1705491037812,-500.0,0.00021917,2]
[311903579,1705491037822,-529.36,0.00021917,2]
[311903581,1705491037831,-500.0,0.00021917,2]
[311903583,1705491037840,-500.0,0.00021917,2]
[311903585,1705491037849,-500.0,0.00021917,2]
[311903587,1705491037859,-500.0,0.00021917,2]
[311903589,1705491037868,-500.0,0.00021917,2]
[311903591,1705491037877,-500.0,0.00021917,2]
[311903593,1705491037886,-270.41667413,0.00021917,2]
[311903594,1705491037895,-500.0,0.00021917,2]
[311903595,1705491037904,-500.0,0.00021917,2]
[311903596,1705491037914,-500.0,0.00021917,2]
[311903597,1705491037923,-500.0,0.00021917,2]
[311903598,1705491037932,-500.0,0.00021917,2]
[311903599,1705491037941,-500.0,0.00021917,2]
[311903600,1705491037950,-570.98,0.00021917,2]
[311903601,1705491037959,-500.0,0.00021917,2]
[311903602,1705491037968,-500.0,0.00021917,2]
[311903603,1705491037978,-500.0,0.00021917,2]
[311903604,1705491037987,-500.0,0.00021917,2]
[311903605,1705491037996,-500.0,0.00021917,2]
[311903606,1705491038005,-500.0,0.00021917,2]
[311903607,1705491038014,-500.0,0.00021917,2]
[311903608,1705491038023,-500.0,0.00021917,2]
[311903609,1705491038032,-572.15,0.00021917,2]
[311903610,1705491038041,-500.0,0.00021917,2]
[311903611,1705491038050,-500.0,0.00021917,2]
[311903612,1705491038059,-500.0,0.00021917,2]
[311903613,1705491038068,-307.56559082,0.00021917,2]
[311903614,1705491038078,-500.0,0.00021917,2]
[311903615,1705491038087,-500.0,0.00021917,2]
[311903616,1705491038096,-500.0,0.00021917,2]
[311903617,1705491038105,-592.47,0.00021917,2]
[311903618,1705491038114,-500.0,0.00021917,2]
[311903619,1705491038123,-540.64,0.00021917,2]
[311903620,1705491038132,-500.0,0.00021917,2]
[311903621,1705491038141,-500.0,0.00021917,2]
[311903622,1705491038201,-500.0,0.00021917,2]
[311903623,1705491038211,-500.0,0.00021917,2]
[311903624,1705491038221,-500.0,0.00021917,2]
[311903625,1705491038232,-500.0,0.00021917,2]
[311903626,1705491038242,-500.0,0.00021917,2]
[311903627,1705491038252,-500.0,0.00021917,2]
[311903628,1705491038263,-500.0,0.00021917,2]
[311903629,1705491038273,-500.0,0.00021917,2]
[311903630,1705491038283,-500.0,0.00021917,2]
[311903631,1705491038294,-500.0,0.00021917,2]
[311903632,1705491038303,-500.0,0.00021917,2]
[311903633,1705491038313,-500.0,0.00021917,2]
[311903634,1705491038322,-500.0,0.00021917,2]
[311903635,1705491038331,-500.0,0.00021917,2]
[311903636,1705491038342,-500.0,0.00021917,2]
[311903637,1705491038353,-500.0,0.00021917,2]
[311903638,1705491038362,-500.0,0.00021917,2]
[311903639,1705491038372,-500.0,0.00021917,2]
[311903640,1705491038381,-500.0,0.00021917,2]
[311903641,1705491038390,-500.0,0.00021917,2]
[311903642,1705491038399,-500.0,0.00021917,2]
[311903643,1705491038410,-500.0,0.00021917,2]
[311903644,1705491038420,-500.0,0.00021917,2]
[311903645,1705491038430,-500.0,0.00021917,2]
[311903646,1705491038439,-500.0,0.00021917,2]
[311903647,1705491038448,-500.0,0.00021917,2]
[311903648,1705491038457,-500.0,0.00021917,2]
[311903649,1705491038468,-500.0,0.00021917,2]
[311903650,1705491038477,-514.197498,0.00021917,2]
[311903651,1705491038487,-500.0,0.00021917,2]
[311903652,1705491038496,-500.0,0.00021917,2]
[311903653,1705491038506,-500.0,0.00021917,2]
[311903654,1705491038516,-500.0,0.00021917,2]
[311903655,1705491038525,-500.0,0.00021917,2]
[311903656,1705491038534,-500.0,0.00021917,2]
[311903657,1705491038544,-500.0,0.00021917,2]
[311903658,1705491038553,-500.0,0.00021917,2]
[311903659,1705491038563,-502.73,0.00021917,2]
[311903660,1705491038572,-500.0,0.00021917,2]
[311903661,1705491038581,-500.0,0.00021917,2]
[311903662,1705491038593,-500.0,0.00021917,2]
[311903663,1705491038605,-500.0,0.00021917,2]
[311903664,1705491038614,-528.67,0.00021917,2]
[311903665,1705491038623,-500.0,0.00021917,2]
[311903666,1705491038633,-500.0,0.00021917,2]
[311903667,1705491038642,-500.0,0.00021917,2]
[311903668,1705491038652,-500.0,0.00021917,2]
[311903669,1705491038661,-616.72,0.00021917,2]
[311903670,1705491038671,-500.0,0.00021917,2]
[311903671,1705491038680,-500.0,0.00021917,2]
[311903672,1705491038690,-500.0,0.00021917,2]
[311903673,1705491038704,-500.0,0.00021917,2]
[311903674,1705491038714,-500.0,0.00021917,2]
[311903675,1705491038725,-500.0,0.00021917,2]
[311903676,1705491038736,-500.0,0.00021917,2]
[311903677,1705491038746,-500.0,0.00021917,2]
[311903678,1705491038756,-500.0,0.00021917,2]
[311903679,1705491038767,-500.0,0.00021917,2]
[311903680,1705491038777,-500.0,0.00021917,2]
[311903681,1705491038788,-623.81,0.00021917,2]
[311903682,1705491038798,-500.0,0.00021917,2]
[311903683,1705491038809,-500.0,0.00021917,2]
[311903684,1705491038819,-500.0,0.00021917,2]
[311903685,1705491038829,-500.0,0.00021917,2]
[311903686,1705491038842,-500.0,0.00021917,2]
[311903687,1705491038853,-500.0,0.00021917,2]
[311903688,1705491038864,-500.0,0.00021917,2]
[311903689,1705491038874,-500.0,0.00021917,2]
[311903690,1705491038885,-500.0,0.00021917,2]
[311903691,1705491038895,-500.0,0.00021917,2]
[311903692,1705491038905,-500.0,0.00021917,2]
[311903693,1705491038915,-1126.63,0.00021917,2]
[311903694,1705491038925,-500.0,0.00021917,2]
[311903695,1705491038935,-500.0,0.00021917,2]
[311903696,1705491038945,-500.0,0.00021917,2]
[311903697,1705491038955,-500.0,0.00021917,2]
[311903698,1705491038965,-500.0,0.00021917,2]
[311903699,1705491038975,-500.0,0.00021917,2]
[311903700,1705491038985,-500.0,0.00021917,2]
[311903701,1705491038995,-500.0,0.00021917,2]
[311903702,1705491039005,-500.0,0.00021917,2]
[311903703,1705491039016,-500.0,0.00021917,2]
[311903704,1705491039025,-500.0,0.00021917,2]
[311903705,1705491039035,-500.0,0.00021917,2]
[311903706,1705491039044,-500.0,0.00021917,2]
[311903707,1705491039054,-500.0,0.00021917,2]
[311903708,1705491039065,-500.0,0.00021917,2]
[311903709,1705491039074,-500.0,0.00021917,2]
[311903710,1705491039084,-500.0,0.00021917,2]
[311903711,1705491039094,-631.93,0.00021917,2]
[311903712,1705491039102,-500.0,0.00021917,2]
[311903713,1705491039111,-500.0,0.00021917,2]
[311903714,1705491039121,-601.93,0.00021917,2]
[311903715,1705491039130,-500.0,0.00021917,2]
[311903716,1705491039139,-500.0,0.00021917,2]
[311903717,1705491039148,-479.98222053,0.00021917,2]
[311903718,1705491039157,-500.0,0.00021917,2]
[311903719,1705491039166,-500.0,0.00021917,2]
[311903720,1705491039175,-598.5,0.00021917,2]
[311903721,1705491039184,-500.0,0.00021917,2]
[311903722,1705491039194,-500.0,0.00021917,2]
[311903723,1705491039203,-579.57,0.00021917,2]
[311903724,1705491039212,-500.0,0.00021917,2]
[311903725,1705491039221,-500.0,0.00021917,2]
[311903726,1705491039230,-500.0,0.00021917,2]